Department Family,Entity,Date,Expense Type,Expense Area,Supplier,Transaction Number,Purchase Invoice Number,AP Amount,
Department of Health,Royal Papworth Hospital NHS Foundation Trust,11/30/2022,CTRL Prepayments <1Yr,Balance Sheet,CAMBRIDGE BIO MEDICAL CAMPUS LTD,44467114,C100191,"72,000.00",
Department of Health,Royal Papworth Hospital NHS Foundation Trust,11/30/2022,Contr Estate Management,Engineering,CAMBRIDGE BIO MEDICAL CAMPUS LTD,44466927,C10027,"60,000.00",
Department of Health,Royal Papworth Hospital NHS Foundation Trust,11/30/2022,Extrnl Rehrge : Recivd,Clinical Perfusion,CAMBRIDGE PERFUSION SERVICES LLP,44619587,2243,"101,576.36",
Department of Health,Royal Papworth Hospital NHS Foundation Trust,11/30/2022,Extrnl Rehrge : Recivd,ECMO program,CAMBRIDGE PERFUSION SERVICES LLP,44670147,2247,"73,310.75",
Department of Health,Royal Papworth Hospital NHS Foundation Trust,11/30/2022,Vascular Implants,Vad,CAMBRIDGE PERFUSION SERVICES LLP,44729880,2249,"43,988.00",
Department of Health,Royal Papworth Hospital NHS Foundation Trust,11/30/2022,Laboratory External Tests,External Pathology,CAMBRIDGE UNIVERSITY HOSPITALS NHS FOUNDATION TRUST,44409117,1201359,"129,284.04",
Department of Health,Royal Papworth Hospital NHS Foundation Trust,11/30/2022,Laboratory External Tests,Histopathology,CAMBRIDGE UNIVERSITY HOSPITALS NHS FOUNDATION TRUST,44396714,1201360,"33,496.32",
Department of Health,Royal Papworth Hospital NHS Foundation Trust,11/30/2022,Laboratory External Tests,External Pathology,CAMBRIDGE UNIVERSITY HOSPITALS NHS FOUNDATION TRUST,44396712,1201361,"27,191.00",
Department of Health,Royal Papworth Hospital NHS Foundation Trust,11/30/2022,Extrnl Rehrge : Recivd,Medical Staffing - Specialist,CAMBRIDGE UNIVERSITY HOSPITALS NHS FOUNDATION TRUST,44373896,71001500,"25,000.00",
Department of Health,Royal Papworth Hospital NHS Foundation Trust,11/30/2022,Extrnl Rehrge : Recivd,Medical Staffing - Specialist,CAMBRIDGE UNIVERSITY HOSPITALS NHS FOUNDATION TRUST,44373899,71001501,"50,000.00",
Department of Health,Royal Papworth Hospital NHS Foundation Trust,11/30/2022,SrvcsRecd-FoundationTrust,Palliative And Supportive Care,CAMBRIDGESHIRE & PETERBOROUGH NHS FOUNDATION TRUST,44729909,67584231,"85,204.26",
Department of Health,Royal Papworth Hospital NHS Foundation Trust,11/30/2022,Laboratory Chemicals,Poct - Point Of Care Testing,CHRYSTAL CONSULTING LTD,44572397,61708,"73,397.16",
Department of Health,Royal Papworth Hospital NHS Foundation Trust,11/30/2022,Med & Surg Maint Contract,Pathology,CLINISYS SOLUTIONS LTD,44483584,INV34212201366,"109,698.98",
Department of Health,Royal Papworth Hospital NHS Foundation Trust,11/30/2022,Computer Maintenance,Sitewide I T,DELL CORPORATION LTD,44395575,7402863746,"31,174.00",
Department of Health,Royal Papworth Hospital NHS Foundation Trust,11/30/2022,Asset Clearing,Balance Sheet,DELL CORPORATION LTD,44655082,7402869098,"35,998.80",
Department of Health,Royal Papworth Hospital NHS Foundation Trust,11/30/2022,Consultant,Med Staff - Cardiology,EAST SUFFOLK & NORTH ESSEX NHS FOUNDATION TRUST,44670182,6000016174,"33,605.33",
Department of Health,Royal Papworth Hospital NHS Foundation Trust,11/30/2022,Electricity,Energy,EDF ENERGY 1 LTD,44363268,000013364720,"96,638.97",
Department of Health,Royal Papworth Hospital NHS Foundation Trust,11/30/2022,Electricity,Energy,EDF ENERGY 1 LTD,44619843,000013685356,"73,733.27",
Department of Health,Royal Papworth Hospital NHS Foundation Trust,11/30/2022,Heating Oil,Engineering,FLEETSOLVE LTD,44062605,9046,"45,074.14",
Department of Health,Royal Papworth Hospital NHS Foundation Trust,11/30/2022,Income tax - Current,Balance Sheet,INLAND REVENUE CIS,44504590,126PQ001177772307,"2,682,195.48",
Department of Health,Royal Papworth Hospital NHS Foundation Trust,11/30/2022,Drugs,Balance Sheet,LLOYDS PHARMACY CLINICAL HOMECARE LTD,44676615,LPCH NOV CONS 1,"190,553.28",
Department of Health,Royal Papworth Hospital NHS Foundation Trust,11/30/2022,Drugs,Balance Sheet,LLOYDS PHARMACY CLINICAL HOMECARE LTD,44676616,LPCH NOV CONS 2,"174,673.84",
Department of Health,Royal Papworth Hospital NHS Foundation Trust,11/30/2022,Drugs,Balance Sheet,LLOYDS PHARMACY CLINICAL HOMECARE LTD,44676617,LPCH NOV CONS 3,"190,553.28",
Department of Health,Royal Papworth Hospital NHS Foundation Trust,11/30/2022,Drugs,Balance Sheet,LLOYDS PHARMACY CLINICAL HOMECARE LTD,44676618,LPCH NOV CONS 4,"182,613.56",
Department of Health,Royal Papworth Hospital NHS Foundation Trust,11/30/2022,Drugs,Balance Sheet,LLOYDS PHARMACY CLINICAL HOMECARE LTD,44676619,LPCH NOV CONS 5,"312,027.17",
Department of Health,Royal Papworth Hospital NHS Foundation Trust,11/30/2022,Drugs,Balance Sheet,LLOYDS PHARMACY CLINICAL HOMECARE LTD,44676629,LPCH NOV CONS 6,"83,041.03",
Department of Health,Royal Papworth Hospital NHS Foundation Trust,11/30/2022,Rent,Waterbeach,MAPP PROPERTY MANAGEMENT LTD,44573823,565000689,"65,868.84",
Department of Health,Royal Papworth Hospital NHS Foundation Trust,11/30/2022,Senior Manager Band 8D,Finance,MILTON KEYNES HOSPITAL NHS FOUNDATION TRUST,44467008,42953930,"31,947.67",
Department of Health,Royal Papworth Hospital NHS Foundation Trust,11/30/2022,Med & Surg Equip General,NHSBT Morgan Study,NEUCIN DESIGN LTD,44416389,NDI1124,"29,867.04",
Department of Health,Royal Papworth Hospital NHS Foundation Trust,11/30/2022,Blood Products,External Pathology,NHS BLOOD & TRANSPLANT,44619823,7010149,"98,684.26",
Department of Health,Royal Papworth Hospital NHS Foundation Trust,11/30/2022,Water,Engineering,NPH HEALTHCARE LTD,44618581,SI1582,"133,479.20",
Department of Health,Royal Papworth Hospital NHS Foundation Trust,11/30/2022,Various,Various,NPH HEALTHCARE LTD,44467056,SI1584,"1,308,052.03",
Department of Health,Royal Papworth Hospital NHS Foundation Trust,11/30/2022,Ext Contr Catering,Catering,NPH HEALTHCARE LTD,44619810,SI1590,"27,214.73",
Department of Health,Royal Papworth Hospital NHS Foundation Trust,11/30/2022,Ext Contr Catering,Catering,NPH HEALTHCARE LTD,44619812,SI1591,"45,058.78",
Department of Health,Royal Papworth Hospital NHS Foundation Trust,11/30/2022,Building Contracts,Engineering,NPH HEALTHCARE LTD,44619804,SI586,"64,708.80",
Department of Health,Royal Papworth Hospital NHS Foundation Trust,11/30/2022,Private Patients Revenue,Private Patients Income,PAPWORTH RADIOLOGY,44373840,10454,"30,318.72",
Department of Health,Royal Papworth Hospital NHS Foundation Trust,11/30/2022,Drugs,Balance Sheet,POLAR SPEED DISTRIBUTION LTD,44676620,PS NOV CONS 01,"40,657.50",
Department of Health,Royal Papworth Hospital NHS Foundation Trust,11/30/2022,Drugs,Balance Sheet,POLAR SPEED DISTRIBUTION LTD,44676621,PS NOV CONS 02,"31,622.50",
Department of Health,Royal Papworth Hospital NHS Foundation Trust,11/30/2022,Drugs,Balance Sheet,POLAR SPEED DISTRIBUTION LTD,44676622,PS NOV CONS 03,"31,622.50",
Department of Health,Royal Papworth Hospital NHS Foundation Trust,11/30/2022,Drugs,Balance Sheet,POLAR SPEED DISTRIBUTION LTD,44676623,PS NOV CONS 04,"32,526.00",
Department of Health,Royal Papworth Hospital NHS Foundation Trust,11/30/2022,Drugs,Balance Sheet,POLAR SPEED DISTRIBUTION LTD,44676624,PS NOV CONS 05,"29,815.50",
Department of Health,Royal Papworth Hospital NHS Foundation Trust,11/30/2022,Drugs,Balance Sheet,SCIENSUS PHARMA SERVICES LTD,44633164,SCI NOV CONS 01,"206,432.72",
Department of Health,Royal Papworth Hospital NHS Foundation Trust,11/30/2022,Drugs,Balance Sheet,SCIENSUS PHARMA SERVICES LTD,44633165,SCI NOV CONS 02,"238,191.60",
Department of Health,Royal Papworth Hospital NHS Foundation Trust,11/30/2022,Drugs,Balance Sheet,SCIENSUS PHARMA SERVICES LTD,44633166,SCI NOV CONS 03,"190,553.28",
Department of Health,Royal Papworth Hospital NHS Foundation Trust,11/30/2022,Drugs,Balance Sheet,SCIENSUS PHARMA SERVICES LTD,44633167,SCI NOV CONS 04,"142,914.96",
Department of Health,Royal Papworth Hospital NHS Foundation Trust,11/30/2022,Drugs,Balance Sheet,SCIENSUS PHARMA SERVICES LTD,44633168,SCI NOV CONS 05,"270,871.06",
Department of Health,Royal Papworth Hospital NHS Foundation Trust,11/30/2022,Drugs,Balance Sheet,SCIENSUS PHARMA SERVICES LTD,44633169,SCI NOV CONS 06,"160,520.43",
Department of Health,Royal Papworth Hospital NHS Foundation Trust,11/30/2022,Drugs,Balance Sheet,SCIENSUS PHARMA SERVICES LTD,44676627,SCI NOV CONS 07,"174,673.84",
Department of Health,Royal Papworth Hospital NHS Foundation Trust,11/30/2022,Drugs,Balance Sheet,SCIENSUS PHARMA SERVICES LTD,44676628,SCI NOV CONS 08,"91,632.81",
Department of Health,Royal Papworth Hospital NHS Foundation Trust,11/30/2022,Other Liabilities - Curr,Balance Sheet,SUPPLY CHAIN COORDINATION LIMITED,44466964,1123166502,"121,805.65",
Department of Health,Royal Papworth Hospital NHS Foundation Trust,11/30/2022,Other Liabilities - Curr,Balance Sheet,SUPPLY CHAIN COORDINATION LIMITED,44459170,1123173118,"95,434.03",
Department of Health,Royal Papworth Hospital NHS Foundation Trust,11/30/2022,Other Liabilities - Curr,Balance Sheet,SUPPLY CHAIN COORDINATION LIMITED,44568098,1123180161,"453,046.38",
Department of Health,Royal Papworth Hospital NHS Foundation Trust,11/30/2022,Other Liabilities - Curr,Balance Sheet,SUPPLY CHAIN COORDINATION LIMITED,44627991,1123185115,"514,311.55",
Department of Health,Royal Papworth Hospital NHS Foundation Trust,11/30/2022,Other Liabilities - Curr,Balance Sheet,SUPPLY CHAIN COORDINATION LIMITED,44709218,1123193732,"148,589.27",
Department of Health,Royal Papworth Hospital NHS Foundation Trust,11/30/2022,Gas,Energy,TOTALENERGIES GAS & POWER LTD,44466978,26729747522,"27,942.54",
Department of Health,Royal Papworth Hospital NHS Foundation Trust,11/30/2022,Med & Surg Equip General,Transplant,TRANSMEDICS BV,44374786,35220209,"125,310.00",
Department of Health,Royal Papworth Hospital NHS Foundation Trust,11/30/2022,Conferences and Seminars,Dr Smith Innovation Fund,UNIVERSITY OF CAMBRIDGE,43811480,PJ1167763,"25,931.00",
